fUSD/lending_fUSD_20240404
["ID","MTS","AMOUNT","RATE_DAILY","PERIOD"]
[321448303,1712194239855,-151.0,0.00049589,120]
[321448305,1712194239864,-154.5,0.000497,6]
[321448307,1712194239873,-154.5,0.000497,6]
[321448309,1712194239883,-154.5,0.000497,6]
[321448311,1712194239892,-154.5,0.000497,6]
[321448313,1712194239901,-154.5,0.000497,6]
[321448315,1712194239910,-3239.64,0.000497,6]
[321448317,1712194239920,-3239.64,0.000497,6]
[321448318,1712194239929,-3239.64,0.000497,6]
[321448320,1712194239939,-3239.64,0.000497,6]
[321448323,1712194239948,-3239.64,0.000497,6]
[321448324,1712194239957,-3239.64,0.000497,6]
[321448326,1712194239967,-3239.64,0.000497,6]
[321448329,1712194239976,-3239.64,0.000497,6]
[321448332,1712194239985,-3239.64,0.000497,6]
[321448335,1712194239995,-3239.64,0.000497,6]
[321448338,1712194240004,-3239.64,0.000497,6]
[321448341,1712194240013,-3239.64,0.000497,6]
[321448344,1712194240022,-3239.64,0.000497,6]
[321448347,1712194240032,-3239.64,0.000497,6]
[321448350,1712194240041,-3239.64,0.000497,6]
[321448353,1712194240051,-3239.64,0.000497,6]
[321448355,1712194240060,-3239.64,0.000497,6]
[321448357,1712194240073,-3239.64,0.000497,6]
[321448359,1712194240083,-3239.64,0.000497,6]
[321448361,1712194240093,-3239.64,0.000497,6]
[321448363,1712194240103,-20767.71815497,0.000498,60]
[321448365,1712194240113,-338.94,0.00049976,120]
[321448367,1712194240123,-14312.30295353,0.0005,120]
[321448369,1712194240133,-1420.99825891,0.0005,21]
[321448371,1712194240142,-27093.29378832,0.0005,4]
[321448373,1712194240152,-2000.0,0.0005,7]
[321448375,1712194240162,-535.74182262,0.0005,120]
[321448377,1712194240171,-10000.0,0.0005,4]
[321448379,1712194240181,-1769.0,0.0005,15]
[321448381,1712194240190,-3022.42491896,0.0005,120]
[321448383,1712194240200,-30000.0,0.0005,5]
[321448385,1712194240209,-628.76,0.00050027,120]
[321448387,1712194240219,-151.29625457,0.00050041,60]
[321448389,1712194240228,-1000.0,0.00050136,64]
[321448391,1712194240239,-150.0,0.0005021,2]
[321448393,1712194240249,-151.0,0.00050384,120]
[321448395,1712194240258,-698.65,0.00050679,120]
[321448397,1712194240268,-281.33,0.00050723,2]
[321448399,1712194240277,-150.0,0.00050925,120]
[321448401,1712194240286,-1000.0,0.00050958,68]
[321448403,1712194240296,-600.0,0.0005097,7]
[321448405,1712194240305,-13074.82264365,0.00051,4]
[321448407,1712194240314,-20000.0,0.00051,5]
[321448409,1712194240324,-950.0,0.00051,3]
[321448411,1712194240334,-950.0,0.00051,120]
[321448413,1712194240343,-531.0,0.00051,120]
[321448415,1712194240353,-998.46,0.00051065,2]
[321448417,1712194240362,-150.0,0.000511,10]
[321448419,1712194240372,-151.0,0.00051178,120]
[321448421,1712194240381,-150.0,0.00051268,2]
[321448423,1712194240391,-2384.0,0.00051483,117]
[321448425,1712194240400,-150.0,0.000516,10]
[321448427,1712194240410,-151.29625457,0.00051647,60]
[321448429,1712194240419,-1000.0,0.0005178,72]
[321448431,1712194240428,-400.0,0.0005197,7]
[321448433,1712194240438,-151.0,0.00051973,120]
[321448435,1712194240447,-4445.67259129,0.00052,120]
[321448437,1712194240457,-950.0,0.00052,120]
[321448439,1712194240467,-154.5,0.00052,7]
[321448441,1712194240476,-154.5,0.00052,7]
[321448443,1712194240486,-154.5,0.00052,7]
[321448445,1712194240496,-154.5,0.00052,7]
[321448447,1712194240505,-154.5,0.00052,7]
[321448449,1712194240515,-154.5,0.00052,7]
[321448451,1712194240524,-154.5,0.00052,7]
[321448453,1712194240534,-154.5,0.00052,7]
[321448455,1712194240544,-154.5,0.00052,7]
[321448457,1712194240554,-154.5,0.00052,7]
[321448459,1712194240564,-3239.64,0.00052,7]
[321448461,1712194240574,-3239.64,0.00052,7]
[321448463,1712194240584,-3239.64,0.00052,7]
[321448474,1712194240914,-3239.64,0.00052,7]
[321448475,1712194240924,-3239.64,0.00052,7]
[321448476,1712194240934,-1284.44903484,0.00052,7]
[321448477,1712194240949,-1955.19096516,0.00052,7]
[321448478,1712194240958,-3239.64,0.00052,7]
[321448479,1712194240968,-3239.64,0.00052,7]
[321448480,1712194240978,-3239.64,0.00052,7]
[321448481,1712194240988,-3239.64,0.00052,7]
[321448482,1712194240997,-3239.64,0.00052,7]
[321448483,1712194241007,-3239.64,0.00052,7]
[321448484,1712194241017,-3239.64,0.00052,7]
[321448485,1712194241026,-3239.64,0.00052,7]
[321448486,1712194241035,-3239.64,0.00052,7]
[321448487,1712194241044,-3239.64,0.00052,7]
[321448488,1712194241057,-3239.64,0.00052,7]
[321448489,1712194241066,-3239.64,0.00052,7]
[321448490,1712194241076,-3239.64,0.00052,7]
[321448491,1712194241087,-3239.64,0.00052,7]
[321448492,1712194241100,-10000.0,0.00052,6]
[321448493,1712194241109,-936.33,0.00052054,60]
[321448494,1712194241119,-666.0,0.00052054,2]
[321448495,1712194241130,-500.0,0.00052054,120]
[321448496,1712194241144,-176.73,0.00052055,2]
[321448497,1712194241153,-150.0,0.000521,11]
[321448498,1712194241162,-500.0,0.00052109,120]
[321448499,1712194241172,-151.29625457,0.00052113,60]
[321448500,1712194241182,-500.0,0.00052164,120]
[321448501,1712194241192,-500.0,0.00052219,120]
[321448502,1712194241202,-500.0,0.00052273,120]
[321448503,1712194241211,-150.0,0.00052327,2]
[321448504,1712194241220,-500.0,0.00052328,120]
[321448505,1712194241230,-151.29625457,0.00052335,60]
[321448506,1712194241240,-500.0,0.00052383,120]
[321448507,1712194241250,-1000.0,0.00052404,120]
[321448508,1712194241259,-500.0,0.00052438,120]
[321448509,1712194241269,-500.0,0.00052493,120]
[321448510,1712194241278,-151.29625457,0.00052533,60]
[321448511,1712194241288,-500.0,0.00052547,120]
[321448512,1712194241297,-998.46,0.0005256,2]
[321448513,1712194241307,-150.0,0.000526,11]
[321448514,1712194241317,-936.33,0.00052602,60]
[321448515,1712194241327,-500.0,0.00052602,120]
[321448516,1712194241339,-1000.0,0.00052602,120]
[321448517,1712194241349,-500.0,0.00052657,120]
[321448518,1712194241357,-150.0,0.00052683,120]
[321448519,1712194241366,-500.0,0.00052712,120]
[321448520,1712194241375,-500.0,0.00052767,120]
[321448521,1712194241384,-628.76,0.00052767,120]
[321448522,1712194241393,-151.0,0.00052767,120]
[321448523,1712194241402,-281.33,0.00052987,2]
[321448524,1712194241411,-850.0,0.00053,120]
[321448525,1712194241421,-1000.0,0.00053,3]
[321448526,1712194241431,-2024.54,0.00053,120]
[321448527,1712194241440,-10000.0,0.00053,7]
[321448528,1712194241450,-150.0,0.000531,11]
[321448529,1712194241459,-936.33,0.0005315,60]
[321448530,1712194241469,-194.17669397,0.000532,120]
[321448531,1712194241479,-194.17669396,0.000532,120]
[321448532,1712194241489,-194.17669396,0.000532,120]
[321448533,1712194241499,-194.17669396,0.000532,120]
[321448534,1712194241509,-2110.0,0.00053352,15]
[321448535,1712194241519,-150.0,0.00053385,2]
[321448536,1712194241529,-325.72816251,0.00053424,30]
[321448537,1712194241539,-1000.0,0.00053424,120]
[321448538,1712194241549,-396.34705,0.00053552,30]
[321448539,1712194241559,-151.0,0.00053562,120]
[321448540,1712194241569,-150.0,0.000536,11]
[321448541,1712194241579,-936.33,0.00053698,60]
[321448542,1712194241592,-156.25,0.00053699,2]
[321448543,1712194241601,-387.60626693,0.0005375,30]
[321448544,1712194241611,-396.34705,0.00053752,30]
[321448545,1712194241620,-222.020212,0.000538,30]
[321448546,1712194241629,-1500.0,0.00053836,7]
[321448547,1712194241638,-2110.0,0.00053852,15]
[321448548,1712194241647,-235.5644,0.000539,120]
[321448549,1712194241657,-29417.3499,0.000539,120]
[321448550,1712194241666,-396.34705,0.00053952,30]
[321448551,1712194241676,-150.54,0.0005399,120]
[321448552,1712194241685,-383643.67791226,0.00054,2]
[321448553,1712194241698,-3329.4699208,0.00054,2]
[321448554,1712194242294,-255.17948596,0.00047633,7]
[321448555,1712194242304,-416.31670437,0.00054,2]
[321448556,1712194242320,-552.7327892,0.00054,2]
[321448557,1712194242333,-467.30999992,0.00054,2]
[321448558,1712194242347,-1165.48999999,0.00054,2]
[321448559,1712194242359,-971.08446401,0.00054,2]
[321448560,1712194242473,-274.6627178,0.00054,2]
[321448561,1712194243054,-1151.44292272,0.00052,30]
[321448562,1712194243129,-948.55707728,0.00052,30]
[321448563,1712194243139,-3978.70342614,0.00054,2]
[321448564,1712194243458,-194.03191435,0.00054,2]
[321448566,1712194246212,-1812.8740405,0.00024799,2]
[321448567,1712194246222,-21017.0400776,0.00054,2]
[321448568,1712194246499,-10395.04290643,0.00054,2]
[321448569,1712194351088,150.0,0.00040547,30]
[321448570,1712194456810,155.81463638,0.00040547,60]
[321448571,1712195165951,250.0,0.00023,3]
[321448572,1712195248675,-1043.68673272,0.00024499,2]
[321448582,1712195432342,-569.27750782,0.00024499,7]
[321448583,1712195432352,-535.57960679,0.000245,2]
[321448584,1712195432449,-174.70242051,0.000245,2]
[321448585,1712195432466,-211.8792727,0.000245,2]
[321448586,1712195432477,-314.8199,0.000247,2]
[321448587,1712195432486,-210.2165355,0.000247,2]
[321448588,1712195432498,-586.7443645,0.000247,2]
[321448589,1712195432507,-32.6356355,0.00024799,2]
[321448590,1712195432527,-177.9986587,0.00024799,2]
[321448591,1712195432537,-261.62382088,0.00025,3]
[321448592,1712195432548,-38.37617912,0.00025,3]
[321448593,1712195432558,-350.0,0.00027,3]
[321448594,1712195432568,-195.95091053,0.00029,3]
[321448595,1712195432591,-204.04908947,0.00029,3]
[321448596,1712195432600,-405.20748901,0.0003,4]
[321448597,1712195432609,-365.46902248,0.0003,2]
[321448598,1712195432624,-2840.81173836,0.0003,2]
[321448599,1712195432634,-344.1262584,0.0003,4]
[321448600,1712195432646,-262.61801472,0.0003,4]
[321448601,1712195432655,-176.36076392,0.00031,3]
[321448602,1712195432671,-273.63923608,0.00031,3]
[321448603,1712195432681,-12.90193446,0.00032,4]
[321448604,1712195432701,-318.83327938,0.00032,4]
[321448605,1712195432710,-156.25,0.00032877,2]
[321448606,1712195432719,-156.25,0.00032877,2]
[321448607,1712195432729,-500.0,0.00033,3]
[321448608,1712195432738,-150.0,0.00034548,10]
[321448609,1712195432748,-155.0,0.00034798,2]
[321448610,1712195432758,-9055.59018033,0.000348,4]
[321448611,1712195432767,-331.36,0.00035,2]
[321448613,1712195432776,-1281.5331215,0.00035,4]
[321448615,1712195432863,-550.0,0.00035,3]
[321448616,1712195432873,-600.0,0.00037,3]
[321448617,1712195432883,-224.99,0.00038499,23]
[321448618,1712195432892,-499.99,0.00038499,2]
[321448619,1712195432901,-490.11815053,0.000385,4]
[321448620,1712195432910,-2952.14781287,0.000388,2]
[321448621,1712195432919,-4065.34553289,0.000389,15]
[321448622,1712195432930,-650.0,0.00039,3]
[321448623,1712195432939,-165.342,0.00039679,2]
[321448624,1712195432948,-1038.69658067,0.00039736,2]
[321448625,1712195432957,-1061.3772739,0.00039736,2]
[321448626,1712195432967,-2100.0,0.00039814,14]
[321448627,1712195432976,-155.73854875,0.00039999,4]
[321448628,1712195432986,-350.76448552,0.0004,30]
[321448629,1712195432995,-2199.31262681,0.0004,30]
[321448630,1712195433004,-5758.8947196,0.0004,4]
[321448631,1712195433014,-192.76675003,0.0004,2]
[321448632,1712195433023,-22103.7237332,0.0004,4]
[321448633,1712195433031,-547.14230713,0.0004,4]
[321448634,1712195433041,-168.79,0.00040451,2]
[321448635,1712195433050,-150.0,0.00040545,2]
[321448636,1712195433061,-150.0,0.00040545,2]
[321448637,1712195433070,-200.0,0.00040545,2]
[321448638,1712195433079,-653.27182698,0.00040547,30]
[321448639,1712195433088,-175.27557722,0.00040547,2]
[321448640,1712195433097,-3353.30355716,0.00040547,4]
[321448641,1712195433106,-200.0,0.00040547,2]
[321448642,1712195433114,-389.43740372,0.00040547,15]
[321448643,1712195433124,-1006.94,0.000406,2]
[321448644,1712195433133,-700.0,0.00041,3]
[321448645,1712195433142,-1006.94,0.0004205,2]
[321448646,1712195433150,-183.0,0.00042369,2]
[321448647,1712195433160,-392.97,0.00042378,15]
[321448648,1712195433169,-250.0,0.0004254,112]
[321448649,1712195433178,-373.06,0.00042551,2]
[321448650,1712195433187,-168.79,0.00042715,2]
[321448651,1712195433196,-200.0,0.0004274,2]
[321448652,1712195433205,-1014.0,0.00043,120]
[321448653,1712195433214,-750.0,0.00043,3]
[321448654,1712195433223,-314.75,0.0004344,2]
[321448655,1712195433232,-1006.94,0.000435,2]
[321448656,1712195433242,-225.96,0.00043589,2]
[321448657,1712195433251,-176.73,0.00043836,2]
[321448658,1712195433260,-1000.0,0.00044,120]
[321448659,1712195433269,-2552.8520105,0.00044215,30]
[321448660,1712195433278,-161.5,0.00044535,2]
[321448661,1712195433288,-424.13,0.00044724,2]
[321448662,1712195433296,-1006.94,0.0004495,2]
[321448663,1712195433307,-168.79,0.00044978,2]
[321448664,1712195433317,-1767.03455808,0.00044998,10]
[321448665,1712195433326,-1000.0,0.00045,120]
[321448666,1712195433335,-328.47719203,0.00045,4]
[321448667,1712195433344,-800.0,0.00045,3]
[321448668,1712195433353,-392.97,0.00045118,15]
[321448669,1712195433362,-373.06,0.00045291,2]
[321448670,1712195433371,-1031.66418487,0.00045492,30]
[321448671,1712195433381,-800.0,0.00045716,2]
[321448672,1712195433391,-1006.94,0.000464,2]
[321448673,1712195433403,-180.0,0.00046529,120]
[321448674,1712195433413,-161.5,0.0004659,2]
[321448675,1712195433422,-465.76,0.00046985,120]
[321448676,1712195433431,-850.0,0.00047,3]
[321448677,1712195433439,-152.0,0.00047116,3]
[321448678,1712195433448,-168.79,0.00047242,2]
[321448679,1712195433459,-313.69784797,0.00047498,30]
[321448680,1712195433468,-1006.94,0.0004785,2]
[321448681,1712195433479,-392.97,0.00047858,15]
[321448682,1712195433489,-1029.0,0.00047886,30]
[321448683,1712195433499,-152.0,0.00047944,4]
[321448684,1712195433508,-373.06,0.0004803,2]
[321448685,1712195433517,-200.0,0.00048082,2]
[321448686,1712195433527,-413.34699398,0.00048598,30]
[321448687,1712195433537,-161.5,0.00048645,2]
[321448688,1712195433547,-152.0,0.00048772,5]
[321448689,1712195433559,-152.63976231,0.00048882,30]
[321448690,1712195433569,-1211.0,0.00049,4]
[321448691,1712195433579,-900.0,0.00049,3]
[321448692,1712195433588,-1006.94,0.000493,2]
[321448693,1712195433597,-987.59428188,0.0004949,15]
[321448694,1712195433606,-168.79,0.00049506,2]
[321448695,1712195433616,-152.0,0.000496,6]
[321448696,1712195433625,-179.71865181,0.000496,25]
[321448697,1712195433634,-171.78036032,0.000496,2]
[321448698,1712195433643,-154.8,0.000497,6]
[321448699,1712195433653,-154.8,0.000497,6]
[321448700,1712195433662,-154.8,0.000497,6]
[321448701,1712195433671,-1948.2,0.000497,6]
[321448702,1712195433681,-1948.2,0.000497,6]
[321448703,1712195433690,-1948.2,0.000497,6]
[321448704,1712195433700,-1948.2,0.000497,6]
[321448705,1712195433709,-1948.2,0.000497,6]
[321448706,1712195433718,-1948.2,0.000497,6]
[321448707,1712195433727,-1948.2,0.000497,6]
[321448708,1712195433736,-1948.2,0.000497,6]
[321448709,1712195433746,-1948.2,0.000497,6]
[321448710,1712195433755,-1948.2,0.000497,6]
[321448711,1712195433764,-1948.2,0.000497,6]
[321448712,1712195433773,-1948.2,0.000497,6]
[321448713,1712195433782,-1948.2,0.000497,6]
[321448714,1712195433791,-1948.2,0.000497,6]
[321448715,1712195433800,-1948.2,0.000497,6]
[321448716,1712195433812,-1948.2,0.000497,6]
[321448717,1712195433821,-1376.70948331,0.000497,6]
[321448718,1712195433835,-571.49051669,0.000497,6]
[321448719,1712195433844,-435.66540115,0.000497,6]
[321448720,1712195433857,-591.826501,0.000497,6]
[321448721,1712195433879,-528.59668657,0.000497,6]
[321448722,1712195433891,-392.11141128,0.000497,6]
[321448723,1712195433900,-1212.90612157,0.000497,6]
[321448743,1712195440530,-378.26118022,0.000497,6]
[321448762,1712195446343,-3206.28076084,0.00047498,2]
[321448763,1712195446354,-357.03269821,0.000497,6]
[321448764,1712195446363,-399.72901331,0.000497,6]
[321448765,1712195446382,-548.40400013,0.000497,6]
[321448766,1712195446396,-1000.06698656,0.000497,6]
[321448767,1712195446406,-2100.0,0.000497,30]
[321448768,1712195446415,-20777.19534431,0.000498,60]
[321448769,1712195446424,-248.62018927,0.000498,2]
[321448770,1712195446434,-577.4636,0.000499,2]
[321448771,1712195446446,-379.12595867,0.00049999,4]
[321448772,1712195446455,-874.13053024,0.00049999,7]
[321448773,1712195446464,-4646.10918045,0.00049999,15]
[321448774,1712195446473,-14384.34188614,0.0005,120]
[321448775,1712195446483,-27100.9070143,0.0005,4]
[321448776,1712195446492,-803.0,0.0005,60]
[321448777,1712195446501,-301.49661,0.0005,3]
[321448778,1712195446511,-2100.0,0.0005,30]
[321448779,1712195446521,-156.25,0.00050228,2]
[321448780,1712195446530,-1029.0,0.00050406,30]
[321448781,1712195446540,-152.0,0.00050428,7]
[321448782,1712195446549,-392.97,0.00050597,120]
[321448783,1712195446559,-161.5,0.000507,2]
[321448784,1712195446569,-1006.94,0.0005075,2]
[321448785,1712195446578,-950.0,0.00051,3]
[321448786,1712195446588,-152.0,0.00051256,8]
[321448787,1712195446598,-2956.4009,0.0005137,17]
[321448788,1712195446608,-171.78036031,0.000514,2]
[321448789,1712195446617,-800.0,0.00051431,120]
[321448790,1712195446626,-3000.0,0.000515,2]
[321448791,1712195446635,-3677.9208672,0.000515,2]
[321448792,1712195446644,-253.13991,0.00051552,30]
[321448793,1712195446654,-157.37,0.00051607,2]
[321448794,1712195446663,-253.13991,0.00051752,30]
[321448795,1712195446672,-168.79,0.0005177,2]
[321448796,1712195446682,-166.132,0.0005194,120]
[321448797,1712195446691,-166.132,0.0005194,120]
[321448798,1712195446701,-166.132,0.0005194,120]
[321448799,1712195446710,-253.13991,0.00051952,30]
[321448800,1712195446720,-3705.76200788,0.00052,120]
[321448801,1712195446729,-154.8,0.00052,7]
[321448802,1712195446739,-154.8,0.00052,7]
[321448803,1712195446749,-154.8,0.00052,7]
[321448804,1712195446758,-154.8,0.00052,7]
[321448805,1712195446767,-154.8,0.00052,7]
[321448806,1712195446777,-154.8,0.00052,7]
[321448807,1712195446786,-1948.2,0.00052,7]
[321448808,1712195446795,-1948.2,0.00052,7]
[321448809,1712195446805,-1948.2,0.00052,7]
[321448810,1712195446815,-1948.2,0.00052,7]
[321448811,1712195446825,-1948.2,0.00052,7]
[321448812,1712195446834,-1948.2,0.00052,7]
[321448813,1712195446843,-1948.2,0.00052,7]
[321448814,1712195446852,-1948.2,0.00052,7]
[321448815,1712195446861,-1948.2,0.00052,7]
[321448816,1712195446870,-1948.2,0.00052,7]
[321448817,1712195446880,-1948.2,0.00052,7]
[321448818,1712195446890,-1948.2,0.00052,7]
[321448819,1712195446899,-1948.2,0.00052,7]
[321448820,1712195446909,-1948.2,0.00052,7]
[321448821,1712195446918,-1948.2,0.00052,7]
[321448822,1712195446928,-1948.2,0.00052,7]
[321448823,1712195446938,-1948.2,0.00052,7]
[321448824,1712195446947,-1948.2,0.00052,7]
[321448825,1712195446957,-1948.2,0.00052,7]
[321448826,1712195446967,-1948.2,0.00052,7]
[321448827,1712195446977,-1010.6985443,0.00052,120]
[321448828,1712195446986,-2100.0,0.00052,30]
[321448829,1712195446996,-271.27146617,0.00052054,120]
[321448830,1712195447006,-152.0,0.00052084,9]
[321448831,1712195447016,-253.13991,0.00052152,30]
[321448832,1712195447027,-1283.818343,0.000522,2]
[321448833,1712195447039,-330.7177927,0.000525,120]
[321448834,1712195447048,-253.13991,0.00052552,30]
[321448835,1712195447058,-299.26086,0.000526,11]
[321448836,1712195447067,-253.13991,0.00052752,30]
[321448837,1712195447077,-161.5,0.00052755,2]
[321448838,1712195447086,-152.0,0.00052913,10]
[321448839,1712195447096,-1071.94239139,0.0005292,5]
[321448840,1712195447106,-152.63976233,0.00052928,60]
[321448841,1712195447115,-253.13991,0.00052952,30]
[321448842,1712195447124,-321.0,0.00053,100]
[321448843,1712195447134,-2022.0,0.00053,30]
[321448844,1712195447144,-2000.0,0.00053,120]
[321448845,1712195447154,-1000.0,0.00053,3]
[321448846,1712195447163,-2100.0,0.00053,30]
[321448847,1712195447173,-1029.0,0.00053059,30]
[321448848,1712195447183,-150.0,0.000531,11]
[321448849,1712195447192,-2000.0,0.000531,120]
[321448850,1712195447202,-253.13991,0.00053152,30]
[321448851,1712195447211,-171.78036031,0.000532,2]
[321448852,1712195447220,-221.95813618,0.000532,120]
[321448853,1712195447230,-1499.999998,0.00053333,120]
[321448854,1712195447239,-392.97,0.00053337,120]
[321448855,1712195447249,-200.0,0.00053424,120]
[321448856,1712195447258,-491.78446,0.0005345,65]
[321448857,1712195447268,-321.0,0.000535,101]
[321448858,1712195447278,-2000.0,0.000535,30]
[321448859,1712195447288,-2000.0,0.000535,120]
[321448860,1712195447297,-150.0,0.0005359,7]
[321448861,1712195447307,-150.0,0.000536,11]
[321448862,1712195447317,-150.0,0.00053655,7]
[321448863,1712195447326,-150.0,0.00053657,7]
[321448864,1712195447335,-152.0,0.00053741,11]
[321448865,1712195447345,-387.73758389,0.0005375,30]
[321448866,1712195447354,-150.0,0.00053763,7]
[321448867,1712195447364,-150.0,0.00053785,7]
[321448868,1712195447374,-150.0,0.00053852,7]
[321448869,1712195447383,-2110.0,0.00053852,15]
[321448870,1712195447394,-150.0,0.00053882,7]
[321448871,1712195447403,-1258.43818539,0.00053896,2]
[321448872,1712195447419,-198560.37804864,0.00053896,2]
[321448873,1712195484647,1049.38872666,0.00040544,30]
[321448874,1712195570096,157.44294923,0.00040544,31]
[321448875,1712195584386,150.5,0.0002499,15]
[321448876,1712195584815,150.5,0.0002499,15]
[321448877,1712195584908,150.5,0.0002498,15]
[321448878,1712195585824,150.5,0.0002498,15]
[321448879,1712195585976,165.09,0.0002497,15]
[321448880,1712195660074,513.36523929,0.0002,2]
[321448882,1712195672488,462.90734386,0.00040544,120]
[321448883,1712195673103,182.45321422,0.00015,2]
[321448884,1712195674258,158.08057668,0.00040544,30]
[321448885,1712195736397,500.0,4e-05,2]
[321448886,1712195776336,507.0,0.0004055,30]
[321448887,1712196008806,-6635.62995058,0.000249,9]
[321448888,1712196008827,-26786.9608603,0.00025,7]
[321448889,1712196459455,-3200.0,0.00024,8]
[321448890,1712196459477,-6400.0,0.000241,8]
[321448891,1712196473272,-9700.0,0.000242,8]
[321448892,1712196473292,-12900.0,0.000243,8]
[321448893,1712196473315,-16100.0,0.000244,8]
[321448894,1712196473337,-3200.0,0.000245,8]
[321448895,1712196473357,-3200.0,0.000246,8]
[321448896,1712196500025,-3200.0,0.000247,9]
[321448897,1712196500047,-3200.0,0.000248,9]
[321448898,1712196500068,-3624.0,0.000249,9]
[321448924,1712196631440,-285.24,0.00020119,2]
[321448926,1712196631449,-5641.52511226,0.00024593,2]
[321448932,1712196631501,-493.68515,0.00024593,2]
[321448935,1712196631558,-806.31485,0.00024593,2]
[321448936,1712196631569,-308.05,0.00024593,2]
[321448937,1712196631620,-3368.14677374,0.00024593,2]
[321448938,1712196631631,-695.99074395,0.00024593,2]
[321448939,1712196631643,-653.10907646,0.00024593,2]
[321448940,1712196631652,-4.14092354,0.00024594,2]
[321448941,1712196631739,-1231.88153208,0.00024594,2]
[321448942,1712196631750,-889.8,0.00024651,2]
[321448943,1712196631759,-665.05864593,0.00024694,2]
[321448944,1712196631768,-399.0,0.00024695,2]
[321448945,1712196631777,-270.28274479,0.000248,2]
[321448946,1712196631787,-150.0,0.00024897,2]
[321448947,1712196631796,-150.0,0.00024897,2]
[321448948,1712196631806,-799.26613551,0.00024898,2]
[321448949,1712196631816,-3477.32344858,0.00024898,2]
[321448950,1712196631828,-684.71908266,0.00024898,2]
[321448951,1712196631848,-673.56027243,0.00024898,2]
[321448959,1712196637381,-171.78036031,0.00024799,2]
[321448961,1712196637390,-538.15406261,0.00024898,2]
[321448963,1712196637402,-275.96458678,0.00024898,2]
[321448964,1712196637442,-1794.70166328,0.00024898,2]
[321448965,1712196637454,-1018.0311035,0.00024898,2]
[321448966,1712196637467,-207080.09557802,0.00024898,2]
[321448967,1712196637476,-1000.0,0.00024899,2]
[321448968,1712196637488,-100000.0,0.000249,2]
[321448969,1712196637498,-1000.0,0.000249,2]
[321448970,1712196637507,-500.0,0.000249,2]
[321448971,1712196637516,-245000.0,0.000249,2]
[321448972,1712196637525,-499.99,0.000249,2]
[321448973,1712196637535,-7500.0,0.000249,2]
[321448974,1712196637544,-862.71024584,0.000249,4]
[321448975,1712196637554,-736.07239407,0.000249,2]
[321448976,1712196637563,-151.4,0.000249,2]
[321448977,1712196637573,-519.43,0.000249,2]
[321448978,1712196637582,-848.26,0.000249,2]
[321448979,1712196637591,-156.58,0.000249,2]
[321448980,1712196637600,-161.95,0.000249,2]
[321448981,1712196637610,-904.92,0.000249,2]
[321448982,1712196637620,-348.62,0.000249,2]
[321448983,1712196637629,-164.14,0.000249,2]
[321448984,1712196637638,-156.00895705,0.0002497,2]
[321448985,1712196637648,-323.58888878,0.0002497,2]
[321448986,1712196637658,-179.92310107,0.0002497,2]
[321448987,1712196637667,-3054.47011222,0.0002497,2]
[321448988,1712196637676,-166.03020899,0.00024998,2]